bitfinex/quotes_SOLUSD_20241215
["timestamp","ask_amount","ask_price","bid_price","bid_amount"]
[1734253713553,0.5663657,218.6,218.53,30.12549]
[1734253715147,0.5663657,218.6,218.53,0.12549]
[1734253717554,0.5663657,218.6,218.54,8.07668031]
[1734253719077,0.5663657,218.6,218.55,38.07668031]
[1734253719251,0.5663657,218.6,218.56,8.88836992]
[1734253720598,0.5663657,218.6,218.57,30.0]
[1734253732294,0.5663657,218.6,218.58,0.12549]
[1734253732804,0.5663657,218.6,218.57,0.93705189]
[1734253733972,0.5663657,218.6,218.57,9.0137322]
[1734253734172,0.5663657,218.6,218.58,8.07668031]
[1734253734385,0.5663657,218.6,218.59,0.93701963]
[1734253735395,0.5663657,218.6,218.59,30.93701963]
[1734253736404,0.5663657,218.6,218.59,0.93701963]
[1734253738919,0.5663657,218.6,218.59,9.01369994]
[1734253739478,0.5663657,218.6,218.59,39.01369994]
[1734253739919,0.5663657,218.6,218.59,30.93701963]
[1734253740087,0.5663657,218.6,218.59,39.01369994]
[1734253751815,0.5663657,218.6,218.59,9.01369994]
[1734253754020,0.5663657,218.6,218.59,39.01369994]
[1734253757504,0.5663657,218.6,218.59,9.01369994]
[1734253759155,0.5663657,218.6,218.59,207.49058394]
[1734253759314,0.5663657,218.6,218.59,206.80454431]
[1734253765227,0.5663657,218.6,218.59,173.02766031]
[1734253766842,0.5663657,218.6,218.59,178.02766031]
[1734253767023,0.5663657,218.6,218.59,206.80454431]
[1734253767344,0.5663657,218.6,218.59,72.10454431]
[1734253767519,0.5663657,218.6,218.59,72.7903973]
[1734253770927,0.5663657,218.6,218.59,85.88810138]
[1734253771636,0.5663657,218.6,218.59,86.7246316]
[1734253773357,0.5663657,218.6,218.59,221.4246316]
[1734253773538,0.5663657,218.6,218.59,220.73877861]
[1734253775342,0.5663657,218.6,218.59,222.55722607]
[1734253776555,0.5663657,218.6,218.59,214.48054576]
[1734253776755,0.5663657,218.6,218.59,222.55722607]
[1734253778156,0.3155657,218.6,218.59,222.55722607]
[1734253783747,0.3155657,218.6,218.59,222.55722607]
[1734253783980,1.5473,218.75,218.7,0.12549]
[1734253784153,7.6781,218.8,218.72,0.25098]
[1734253784360,7.6781,218.8,218.73,0.685534]
[1734253784753,7.6781,218.8,218.74,0.25098]
[1734253785260,7.6781,218.8,218.75,0.68550679]
[1734253786453,7.6781,218.8,218.74,0.25098]
[1734253786969,7.6781,218.8,218.74,9.01318878]
[1734253788250,7.6781,218.8,218.74,0.93650847]
[1734253788444,7.6781,218.8,218.74,9.01318878]
[1734253788966,7.6781,218.8,218.75,30.0]
[1734253791663,1.5473,218.8,218.76,0.68550269]
[1734253791871,1.5473,218.8,218.76,30.68550269]
[1734253792250,1.5473,218.8,218.76,0.68550269]
[1734253792864,0.5663657,218.82,218.77,8.07668031]
[1734253793053,0.5663657,218.82,218.78,0.68541201]
[1734253795175,0.5663657,218.82,218.81,0.12549]
[1734253795356,0.5663657,218.82,218.81,8.20217031]
[1734253795551,0.5663657,218.82,218.81,0.12549]
[1734253796171,0.5663657,218.82,218.8,0.68529424]
[1734253796379,0.5663657,218.82,218.81,38.20217031]
[1734253796573,0.5663657,218.82,218.81,27.12549]
[1734253796778,0.5663657,218.82,218.81,35.76201825]
[1734253800557,0.5663657,218.82,218.81,35.07668031]
[1734253801860,0.5663657,218.82,218.81,27.0]
[1734253803282,0.5663657,218.82,218.77,8.76214118]
[1734253803489,0.5663657,218.82,218.78,30.0]
[1734253806515,0.5663657,218.82,218.75,0.68546091]
[1734253807091,0.5663657,218.82,218.73,15.45386038]
[1734253807289,0.5663657,218.82,218.73,8.76224204]
[1734253807476,0.5663657,218.82,218.73,0.68556173]
[1734253807874,43.776884,218.81,218.71,0.68557804]
[1734253808066,43.776884,218.81,218.72,8.07668031]
[1734253808868,43.776884,218.81,218.73,0.6855907]
[1734253809077,20.0,218.81,218.73,8.76227101]
[1734253809277,20.0,218.81,218.73,0.6855907]
[1734253809495,20.0,218.81,218.73,8.76227101]
[1734253810637,20.0,218.81,218.74,30.0]
[1734253812208,23.776884,218.8,218.74,30.0]
[1734253812610,0.5663657,218.82,218.75,0.68561203]
[1734253814203,0.5663657,218.82,218.76,30.0]
[1734253815294,0.5663657,218.82,218.77,0.68546917]
[1734253820026,0.5663657,218.82,218.75,0.68546455]
[1734253820619,0.5663657,218.82,218.76,30.0]
[1734253829040,0.5663657,218.82,218.8,8.07668031]
[1734253829243,0.5663657,218.82,218.81,8.76201979]
[1734253830567,0.5663657,218.82,218.81,38.76201979]
[1734253831443,0.5663657,218.82,218.81,8.76201979]
[1734253832157,0.5663657,218.82,218.81,0.68533948]
[1734253837469,0.5663657,218.82,218.81,30.68533948]
[1734253837664,0.5663657,218.82,218.81,30.0]
[1734253838549,0.5663657,218.82,218.77,0.68534535]
[1734253839665,0.5663657,218.82,218.76,0.6854767]
[1734253839995,0.5663657,218.82,218.77,38.07668031]
[1734253840179,0.5663657,218.82,218.79,8.07668031]
[1734253840350,0.5663657,218.82,218.8,0.68540141]
[1734253842457,0.5663657,218.82,218.8,8.76208172]
[1734253842669,0.5663657,218.82,218.8,0.68540141]
[1734253846979,0.5663657,218.82,218.81,30.0]
[1734253851662,0.5663657,218.82,218.81,8.07668031]
[1734253851869,0.5663657,218.82,218.81,8.76193836]
[1734253852564,0.5663657,218.82,218.81,10.52851005]
[1734253852884,0.5663657,218.82,218.81,10.52633521]
[1734253853082,0.5663657,218.82,218.81,8.76193836]
[1734253853586,0.5663657,218.82,218.81,0.68525805]
[1734253854270,0.5663657,218.82,218.81,8.76193836]
[1734253859670,0.5663657,218.82,218.81,38.76193836]
[1734253862566,0.5663657,218.82,218.81,38.88742836]
[1734253864089,0.5663657,218.82,218.81,39.01291836]
[1734253865372,0.5663657,218.82,218.81,9.01291836]
[1734253866288,0.5663657,218.82,218.81,50.51000236]
[1734253866588,0.5663657,218.82,218.81,62.96781755]
[1734253868359,0.5663657,218.82,218.81,92.96781755]
[1734253868565,0.5663657,218.82,218.81,92.2825595]
[1734253869491,0.5663657,218.82,218.81,226.9825595]
[1734253871995,0.5663657,218.82,218.81,196.9825595]
[1734253872207,0.5663657,218.82,218.81,167.9546955]
[1734253872498,0.5663657,218.82,218.81,166.8731955]
[1734253872698,0.5663657,218.82,218.81,166.9986855]
[1734253872869,0.5663657,218.82,218.81,161.8731955]
[1734253873467,0.5663657,218.82,218.81,192.65196988]
[1734253873909,0.5663657,218.82,218.81,168.87512622]
[1734253874382,0.5663657,218.82,218.81,167.1241755]
[1734253875998,0.5663657,218.82,218.81,159.04749519]
[1734253876170,0.5663657,218.82,218.81,167.1241755]
[1734253876570,0.5663657,218.82,218.81,197.1241755]
[1734253877899,0.5663657,218.82,218.81,192.1241755]
[1734253878082,0.5663657,218.82,218.81,193.87527014]
[1734253878287,0.5663657,218.82,218.81,198.87527014]
[1734253879705,0.5663657,218.82,218.81,193.87527014]
[1734253879874,0.5663657,218.82,218.81,198.87527014]
[1734253880286,0.5663657,218.82,218.81,193.87527014]
[1734253881180,0.5663657,218.82,218.81,198.87527014]
[1734253882801,0.5663657,218.82,218.81,193.87527014]
[1734253882990,0.5663657,218.82,218.81,198.87527014]
[1734253883500,0.5663657,218.82,218.81,184.15988983]
[1734253883712,0.5663657,218.82,218.81,44.33439983]
[1734253883892,0.5663657,218.82,218.81,28.88746224]
[1734253884394,0.5663657,218.82,218.81,20.68529193]
[1734253884596,0.5663657,218.82,218.81,28.76197224]
[1734253885609,0.5663657,218.82,218.81,20.68529193]
[1734253885806,0.5663657,218.82,218.81,28.76197224]
[1734253886891,0.5663657,218.82,218.81,58.76197224]
[1734253892496,0.5663657,218.82,218.81,60.51306688]
[1734253893229,0.5663657,218.82,218.81,30.51306688]
[1734253893391,0.5663657,218.82,218.81,30.76404688]
[1734253893586,0.5663657,218.82,218.81,29.01295224]
[1734253894195,0.5663657,218.82,218.81,30.76756544]
[1734253894407,0.5663657,218.82,218.81,29.01295224]
[1734253894996,0.5663657,218.82,218.81,30.76818134]
[1734253896510,0.5663657,218.82,218.81,30.76915467]
[1734253897026,0.5663657,218.82,218.81,209.58654032]
[1734253897191,0.5663657,218.82,218.81,208.90124839]
[1734253897912,0.5663657,218.82,218.81,238.90124839]
[1734253901188,10.0,218.9,218.86,5.0]
[1734253901388,10.0,218.9,218.89,8.07668031]
[1734253902212,10.0,218.9,218.89,8.20217031]
[1734253902388,10.0,218.9,218.89,38.20217031]
[1734253906092,10.0,218.9,218.89,38.88718063]
[1734253908693,10.0,218.9,218.89,39.01267063]
[1734253912318,10.0,218.9,218.89,30.93599032]
[1734253912516,10.0,218.9,218.89,39.01267063]
[1734253912818,10.0,218.9,218.89,30.81050032]
[1734253913118,10.0,218.9,218.89,38.88718063]
[1734253915123,10.0,218.9,218.89,8.88718063]
[1734253916002,10.0,218.9,218.89,8.07668031]
[1734253916321,10.0,218.9,218.87,0.68506764]
[1734253916523,10.0,218.9,218.86,134.7]
[1734253916904,10.0,218.9,218.86,142.77668031]
[1734253917727,10.0,218.9,218.86,8.07668031]
[1734253918816,10.0,218.9,218.87,30.0]
[1734253919195,10.0,218.9,218.87,38.07668031]
[1734253921326,10.0,218.9,218.87,30.0]
[1734253921703,10.0,218.9,218.87,29.5]
[1734253924725,10.0,218.9,218.85,30.0]
[1734253925839,1.5104,218.89,218.85,30.0]
[1734253927633,1.5104,218.89,218.8,1.7526305]
[1734253927634,1.5104,218.89,218.8,8.07668031]
[1734253927841,1.5104,218.89,218.77,1.7526305]
[1734253927842,1.5104,218.89,218.81,30.0]
[1734253928821,23.776884,218.88,218.81,30.0]
[1734253929519,23.776884,218.88,218.79,8.07668031]
[1734253930940,23.776884,218.88,218.8,30.0]
[1734253931859,1.5104,218.89,218.86,8.07668031]
[1734253933320,1.5104,218.89,218.85,8.07668031]
[1734253934729,1.5104,218.89,218.86,30.0]
[1734253935049,1.5104,218.89,218.85,8.07668031]
[1734253936653,1.5104,218.89,218.86,0.68522666]
[1734253937449,1.5104,218.89,218.84,8.07668031]
[1734253937827,1.5104,218.89,218.85,0.68524982]
[1734253938223,1.5104,218.89,218.81,0.12549]
[1734253938438,1.5104,218.89,218.84,8.07668031]
[1734253938639,1.5104,218.89,218.85,0.68527599]
[1734253940246,10.0,218.9,218.85,8.7619563]
[1734253941683,10.0,218.9,218.86,8.07668031]
[1734253941848,10.0,218.9,218.87,0.68514161]
[1734253942149,10.0,218.9,218.87,30.68514161]
[1734253943024,10.0,218.9,218.87,30.0]
[1734253943755,10.0,218.9,218.85,30.0]
[1734253953057,10.0,218.9,218.82,0.68533195]
[1734253953354,10.0,218.9,218.82,8.76201226]
[1734253956034,10.0,218.9,218.83,30.0]
[1734253956859,10.0,218.9,218.84,8.76199033]
[1734253957033,10.0,218.9,218.85,30.0]
[1734253957437,10.0,218.9,218.86,0.68523115]
[1734253960768,10.0,218.9,218.85,30.0]
[1734253960958,10.0,218.9,218.85,0.68525391]
[1734253963659,10.0,218.9,218.85,8.76193422]
[1734253963976,10.0,218.9,218.86,30.0]
[1734253966488,10.0,218.9,218.87,0.68518162]
[1734253966673,10.0,218.9,218.87,30.68518162]
[1734253970398,10.0,218.9,218.87,0.68518162]
[1734253975673,10.0,218.9,218.87,30.68518162]
[1734253975872,10.0,218.9,218.87,0.68518162]
[1734253977169,10.0,218.9,218.86,8.07668031]
[1734253977373,10.0,218.9,218.85,8.07668031]
[1734253977574,10.0,218.9,218.85,8.76190062]
[1734253977776,10.0,218.9,218.85,0.68522031]
[1734253978581,10.0,218.9,218.85,8.76190062]
[1734253978793,10.0,218.9,218.87,30.0]
[1734253983002,10.0,218.9,218.84,20.0]
[1734253983185,10.0,218.9,218.82,0.68523526]
[1734253983397,10.0,218.9,218.81,142.77668031]
[1734253983600,10.0,218.9,218.78,5.34885032]
[1734253983779,10.0,218.9,218.81,8.07668031]
[1734253985792,10.0,218.9,218.82,30.0]
[1734253987275,23.776884,218.89,218.82,30.0]
[1734253988103,20.0,218.86,218.74,0.68552617]
[1734253988280,20.0,218.86,218.75,30.0]
[1734253990575,1.6474,218.85,218.75,30.0]
[1734253991193,7.8577,218.85,218.75,30.0]
[1734253992292,7.8577,218.85,218.75,0.25098]
[1734253992480,7.8577,218.85,218.77,8.32766031]
[1734253992675,7.8577,218.85,218.78,0.68543599]
[1734253993394,7.8577,218.85,218.77,9.01308615]
[1734253993775,7.8577,218.85,218.77,0.93640584]
[1734253994392,7.8577,218.85,218.77,0.25098]
[1734253995307,7.8577,218.85,218.77,38.32766031]
[1734253995502,7.8577,218.85,218.78,0.68543444]
[1734253996182,7.8577,218.85,218.79,30.0]
[1734253996892,7.8577,218.85,218.78,0.68543444]
[1734253999578,7.8577,218.85,218.77,8.32766031]
[1734253999783,7.8577,218.85,218.79,30.0]
[1734254002007,7.8577,218.85,218.77,0.25098]
[1734254004311,7.8577,218.85,218.79,0.12549]
[1734254004511,7.8577,218.85,218.79,0.25098]
[1734254004888,7.8577,218.85,218.79,30.25098]
[1734254005808,7.8577,218.85,218.79,30.0]
[1734254007212,8.32766,218.88,218.79,38.07668031]
[1734254007508,8.32766,218.88,218.8,8.07668031]
[1734254007898,11.5006,218.9,218.8,8.07668031]
[1734254008098,11.5006,218.9,218.81,30.0]
[1734254008598,11.5006,218.89,218.81,30.0]
[1734254011698,11.5006,218.89,218.77,0.25098]
[1734254015413,11.5006,218.89,218.77,8.32766031]
[1734254015619,11.5006,218.89,218.77,8.07668031]
[1734254015822,11.5006,218.89,218.78,30.0]
[1734254016815,11.5006,218.89,218.77,8.07668031]
[1734254017607,11.5006,218.89,218.78,30.0]
[1734254017902,20.0,218.86,218.78,30.0]
[1734254018402,6.4327,218.84,218.78,30.0]
[1734254019319,6.4327,218.84,218.74,0.12549]
[1734254019696,6.4327,218.84,218.74,0.25098]
[1734254022221,6.4327,218.84,218.74,30.25098]
[1734254028139,6.4327,218.84,218.74,38.32766031]
[1734254028545,6.4327,218.84,218.75,8.07668031]
[1734254028743,6.4327,218.84,218.76,38.07668031]
[1734254028920,6.4327,218.84,218.76,30.0]
[1734254029613,6.4327,218.84,218.74,20.25098]
[1734254029822,6.4327,218.84,218.75,8.07668031]
[1734254032535,6.4327,218.84,218.76,30.0]
[1734254033612,6.4327,218.84,218.75,8.76221817]
[1734254037514,6.4327,218.84,218.76,30.0]
[1734254039156,1.6494,218.85,218.8,8.07668031]
[1734254039440,1.6494,218.85,218.76,38.07668031]
[1734254039935,1.6494,218.85,218.76,30.0]
[1734254043346,1.6494,218.85,218.76,38.07668031]
[1734254043726,1.6494,218.85,218.76,8.07668031]
[1734254044449,1.6494,218.85,218.75,8.20217031]
[1734254046774,1.6494,218.85,218.76,30.0]
[1734254047858,20.0,218.81,218.76,30.0]
[1734254048024,1.6394,218.8,218.76,30.0]
[1734254048824,1.6394,218.8,218.7,30.0]
[1734254050636,23.776884,218.77,218.7,30.0]
[1734254052053,23.776884,218.77,218.66,8.07668031]
[1734254052246,23.776884,218.77,218.67,30.0]
[1734254052939,23.776884,218.77,218.66,8.07668031]
[1734254053527,1.70349,218.76,218.63,0.68586765]
[1734254053847,23.776884,218.75,218.63,8.07668031]
[1734254054635,23.776884,218.75,218.61,0.68593105]
[1734254054636,23.776884,218.75,218.64,8.07668031]
[1734254054832,23.776884,218.75,218.65,8.07668031]
[1734254056032,23.776884,218.75,218.66,30.0]
[1734254057356,23.776884,218.75,218.64,30.0]
[1734254058257,23.776884,218.71,218.64,30.0]
[1734254058964,30.213884,218.71,218.64,30.0]
[1734254059252,1.578,218.7,218.64,30.0]
[1734254059754,23.776884,218.69,218.64,30.0]
[1734254060358,23.776884,218.69,218.61,30.0]
[1734254065737,23.776884,218.69,218.6,8.07668031]
[1734254065939,23.776884,218.69,218.61,8.07668031]
[1734254068541,20.0,218.68,218.6,8.07668031]
[1734254068747,20.0,218.68,218.61,30.0]
[1734254070462,1.578,218.7,218.62,8.07668031]
[1734254070663,1.578,218.7,218.63,8.07668031]
[1734254071759,1.578,218.7,218.64,30.0]
[1734254074170,1.578,218.7,218.63,8.07668031]
[1734254076745,1.578,218.7,218.61,0.12549]
[1734254076957,1.578,218.7,218.62,8.07668031]
[1734254077887,1.578,218.7,218.63,30.0]
[1734254079458,1.578,218.7,218.63,38.7626178]
[1734254079689,1.578,218.7,218.64,8.07668031]
[1734254080486,1.578,218.7,218.63,38.7626178]
[1734254080691,1.578,218.7,218.64,30.0]
[1734254081070,1.578,218.7,218.63,8.07668031]
[1734254083087,1.578,218.7,218.62,8.07668031]
[1734254083497,1.578,218.7,218.61,0.81141675]
[1734254083790,1.578,218.7,218.62,8.07668031]
[1734254083975,1.578,218.7,218.63,30.0]
[1734254086668,20.0,218.68,218.63,30.0]
[1734254087193,20.0,218.68,218.59,0.12549]
[1734254087371,20.0,218.68,218.6,30.0]
[1734254087572,23.776884,218.67,218.6,30.0]
[1734254087777,23.776884,218.67,218.54,8.07668031]
[1734254088293,43.776884,218.63,218.56,30.0]
[1734254089288,43.776884,218.63,218.51,8.20217031]
[1734254089477,43.776884,218.63,218.52,30.0]
[1734254091108,43.776884,218.63,218.52,38.07668031]
[1734254091405,20.0,218.63,218.54,8.07668031]
[1734254091573,20.0,218.63,218.53,0.12549]
[1734254091574,7.84,218.66,218.55,8.07668031]
[1734254091773,7.84,218.66,218.57,8.07668031]
[1734254092005,7.84,218.66,218.56,8.07668031]
[1734254095532,7.84,218.66,218.57,8.07668031]
[1734254095735,7.84,218.66,218.58,8.07668031]
[1734254096367,1.6367,218.66,218.59,8.07668031]
[1734254097027,1.6367,218.66,218.6,8.07668031]
[1734254097356,1.6367,218.66,218.55,20.0]
[1734254097526,1.6367,218.66,218.57,8.07668031]
[1734254098553,1.6367,218.66,218.58,30.0]
[1734254100328,1.6367,218.66,218.58,38.07668031]
[1734254100528,1.6367,218.66,218.59,8.07668031]
[1734254100751,1.6367,218.66,218.6,8.07668031]
[1734254101134,1.6367,218.66,218.61,8.07668031]
[1734254101534,7.8368,218.71,218.62,8.07668031]
[1734254102141,7.8368,218.71,218.62,38.07668031]
[1734254103474,1.5075,218.71,218.64,8.07668031]
[1734254103696,1.5075,218.71,218.65,30.0]
[1734254103987,1.5075,218.71,218.65,38.07668031]
[1734254105165,6.3293,218.76,218.67,8.07668031]
[1734254105166,7.8368,218.76,218.67,8.07668031]
[1734254105874,7.8368,218.76,218.68,8.07668031]
[1734254106169,7.8368,218.76,218.68,38.07668031]
[1734254106561,7.8368,218.76,218.69,8.07668031]
[1734254106898,1.5075,218.76,218.7,8.07668031]
[1734254107464,1.5075,218.76,218.71,8.20217031]
[1734254107669,7.8368,218.81,218.71,8.20217031]
[1734254109965,7.8368,218.81,218.71,38.20217031]
[1734254110760,7.8368,218.81,218.73,0.12549]
[1734254110954,7.8368,218.81,218.74,8.07668031]
[1734254111482,7.8368,218.81,218.72,8.07668031]
[1734254113200,7.8368,218.81,218.7,28.20217031]
[1734254113487,7.8368,218.81,218.71,8.20217031]
[1734254115368,23.776884,218.8,218.67,134.7]
[1734254115672,23.776884,218.8,218.68,8.07668031]
[1734254115866,23.776884,218.8,218.68,0.12549]
[1734254116466,23.776884,218.8,218.68,38.20217031]
[1734254116862,23.776884,218.8,218.69,8.07668031]
[1734254117081,23.776884,218.8,218.7,8.07668031]
[1734254117468,23.776884,218.8,218.71,30.0]
[1734254118467,23.776884,218.8,218.7,8.07668031]
[1734254119173,7.8368,218.81,218.72,8.07668031]
[1734254119482,7.8368,218.81,218.73,8.07668031]
[1734254121165,7.8368,218.81,218.71,8.07668031]
[1734254121367,23.776884,218.8,218.68,8.07668031]
[1734254122698,23.776884,218.8,218.69,8.07668031]
[1734254123076,23.776884,218.8,218.7,8.07668031]
[1734254125293,23.776884,218.8,218.71,8.07668031]
[1734254126576,20.0,218.78,218.71,8.07668031]
[1734254126908,7.8368,218.81,218.73,8.07668031]
[1734254131782,7.8368,218.81,218.72,8.07668031]
[1734254131984,7.8368,218.81,218.7,8.07668031]
[1734254132183,23.776884,218.8,218.68,8.07668031]
[1734254132480,20.0,218.77,218.67,8.07668031]
[1734254133385,20.0,218.77,218.68,30.0]
[1734254133774,20.0,218.77,218.67,8.07668031]
[1734254135475,23.776884,218.76,218.65,20.0]
[1734254135783,23.776884,218.76,218.63,2.35232716]
[1734254135784,30.115284,218.74,218.63,0.68582716]
[1734254135983,30.115284,218.74,218.65,8.07668031]
[1734254137202,30.115284,218.74,218.66,30.0]
[1734254137593,30.115284,218.74,218.65,8.07668031]
[1734254140600,30.115284,218.74,218.66,30.0]
[1734254141090,20.0,218.71,218.66,30.0]
[1734254142396,20.0,218.71,218.63,8.07668031]
[1734254142614,20.0,218.71,218.64,8.07668031]
[1734254149397,30.115284,218.74,218.65,8.07668031]
[1734254149597,30.115284,218.74,218.66,8.07668031]
[1734254149803,30.115284,218.74,218.67,8.07668031]
[1734254151005,30.115284,218.74,218.66,8.07668031]
[1734254151216,30.115284,218.74,218.65,8.07668031]
[1734254153313,30.115284,218.74,218.66,30.0]
[1734254153720,30.115284,218.74,218.65,8.07668031]
[1734254156516,30.115284,218.74,218.64,8.07668031]
[1734254157697,30.115284,218.74,218.63,8.07668031]
[1734254157932,20.0,218.71,218.63,8.07668031]
[1734254158227,20.0,218.71,218.6,20.0]
[1734254158422,20.0,218.71,218.61,8.07668031]
[1734254158724,23.776884,218.7,218.61,8.07668031]
[1734254159300,1.6111,218.69,218.6,20.0]
[1734254160216,1.6111,218.69,218.59,8.07668031]
[1734254160217,23.776884,218.68,218.59,8.07668031]
[1734254160411,23.776884,218.68,218.61,30.0]
[1734254161223,6.1532,218.67,218.61,30.0]
[1734254162313,6.1532,218.67,218.59,8.07668031]
[1734254162623,6.1532,218.67,218.6,8.07668031]
[1734254162814,6.1532,218.67,218.61,8.07668031]
[1734254163017,6.1532,218.67,218.62,8.07668031]
[1734254163324,6.1532,218.67,218.6,8.07668031]
[1734254164597,6.1532,218.67,218.59,8.07668031]
[1734254164824,6.1532,218.67,218.58,8.07668031]
[1734254166426,6.1532,218.67,218.59,8.07668031]
[1734254167259,6.1532,218.67,218.58,8.07668031]
[1734254167543,6.1532,218.67,218.59,30.0]
[1734254168955,23.776884,218.66,218.59,30.0]
[1734254169106,20.0,218.63,218.54,8.07668031]
[1734254169306,23.776884,218.62,218.56,30.0]
[1734254169920,20.0,218.63,218.56,30.0]
[1734254170123,1.6087,218.65,218.56,38.07668031]
[1734254170124,20.0,218.64,218.56,38.07668031]
[1734254172555,1.6087,218.65,218.58,8.07668031]
[1734254172720,1.6087,218.65,218.59,8.07668031]
[1734254173138,1.6087,218.65,218.56,30.68610063]
[1734254173139,1.6087,218.65,218.58,8.07668031]
[1734254174650,1.6087,218.65,218.59,30.0]
[1734254176276,1.6087,218.65,218.59,38.07668031]
[1734254176642,1.6087,218.65,218.59,30.0]
[1734254177829,1.6087,218.65,218.56,8.07668031]
[1734254178027,20.0,218.64,218.55,8.07668031]
[1734254178547,20.0,218.64,218.56,8.07668031]
[1734254179059,20.0,218.64,218.57,8.07668031]
[1734254183333,20.0,218.64,218.56,8.07668031]
[1734254183532,20.0,218.64,218.54,0.68618504]
[1734254183739,23.776884,218.63,218.53,8.07668031]
[1734254183938,23.776884,218.63,218.52,8.07668031]
[1734254185138,23.776884,218.63,218.53,8.07668031]
[1734254185957,23.776884,218.63,218.54,30.0]
[1734254187139,20.0,218.62,218.54,38.07668031]
[1734254189362,20.0,218.62,218.54,30.0]
[1734254191071,6.1532,218.67,218.59,0.12549]
[1734254191276,6.1532,218.67,218.58,8.07668031]
[1734254191277,6.1532,218.67,218.6,8.07668031]
[1734254192783,6.1532,218.67,218.61,30.0]
[1734254193282,23.776884,218.66,218.56,20.0]
[1734254193646,23.776884,218.66,218.57,30.0]
[1734254194348,23.776884,218.66,218.57,38.07668031]
[1734254195374,23.776884,218.66,218.57,8.07668031]
[1734254195572,23.776884,218.66,218.56,20.0]
[1734254195779,23.776884,218.66,218.55,8.07668031]
[1734254195954,20.0,218.69,218.59,8.07668031]
[1734254196155,1.5893,218.7,218.61,8.07668031]
[1734254197673,20.0,218.69,218.61,8.07668031]
[1734254198875,20.0,218.69,218.6,8.07668031]
[1734254199253,23.776884,218.68,218.6,8.07668031]
[1734254199586,23.776884,218.68,218.58,8.07668031]
[1734254200473,23.776884,218.68,218.57,20.0]
[1734254200664,23.776884,218.68,218.58,8.07668031]
[1734254200868,23.776884,218.68,218.57,8.07668031]
[1734254201166,23.776884,218.68,218.51,0.12549]
[1734254201369,23.776884,218.68,218.52,0.6861904]
[1734254201370,20.0,218.65,218.52,0.6861904]
[1734254201561,20.0,218.65,218.53,8.07668031]
[1734254201752,23.776884,218.64,218.55,30.0]
[1734254202778,23.776884,218.64,218.55,38.07668031]
[1734254202954,23.776884,218.64,218.56,8.07668031]
[1734254203152,23.776884,218.64,218.57,30.0]
[1734254204261,20.0,218.65,218.57,38.07668031]
[1734254204509,23.776884,218.65,218.57,38.07668031]
[1734254204784,23.776884,218.65,218.57,30.0]
[1734254205078,6.1147,218.66,218.57,30.0]
[1734254206165,23.776884,218.65,218.57,30.0]
[1734254207058,23.776884,218.63,218.57,30.0]
[1734254207675,23.776884,218.63,218.54,30.0]
[1734254208067,23.776884,218.63,218.54,38.07668031]
[1734254208467,23.776884,218.63,218.55,8.07668031]
[1734254208783,23.776884,218.63,218.56,30.0]
[1734254208981,1.5579,218.64,218.56,38.07668031]
[1734254209283,23.776884,218.65,218.58,8.07668031]
[1734254209453,20.0,218.67,218.56,30.0]
[1734254209650,20.0,218.67,218.56,38.07668031]
[1734254210491,20.0,218.67,218.57,8.07668031]
[1734254210793,23.776884,218.66,218.58,30.0]
[1734254213695,23.776884,218.66,218.55,8.07668031]
[1734254214001,23.776884,218.66,218.54,8.07668031]
[1734254214364,23.776884,218.62,218.53,8.07668031]
[1734254216361,23.776884,218.62,218.52,8.07668031]
[1734254216569,23.776884,218.62,218.53,30.0]
[1734254217296,23.776884,218.62,218.53,38.07668031]
[1734254219885,23.776884,218.62,218.54,8.07668031]
[1734254220185,23.776884,218.62,218.55,30.0]
[1734254222409,1.6564,218.69,218.57,8.07668031]
[1734254222410,20.0,218.67,218.57,8.07668031]
[1734254222897,20.0,218.67,218.58,8.07668031]
[1734254223471,1.6564,218.69,218.6,8.07668031]
[1734254223878,1.6564,218.69,218.59,38.07668031]